Cogmind - Beta 13 @@@ ROGUE MODE // 2024.03.31 @ 14:30:16 Player: f_ Result: Self-destructed Performance ------------- Evolutions (1) 500 Regions Visited (2) 400 Robots Destroyed (12) 60 Value Destroyed (278) 278 Prototype IDs (2) 40 Alien Tech Used (0) 0 Bonus (0) 0 TOTAL SCORE: 1278 Bonus ------- None Cogmind --------- Core Integrity 359/400 Matter 172/300 Energy 100/100 System Corruption 1% Temperature Cool (0) Movement Core (1350) Ox26 Location -9/Materials Parts ------- > --- POWER (1) -------- (None) > --- PROPULSION (2) --- (None) > --- UTILITY (4) ------ Huge Storage Unit Power Shielding > --- WEAPON (2) ------- (None) > --- INVENTORY (25) --- Ion Engine Light Armor Plating Medium Armor Plating Shield Generator Beam Rifle Assault Rifle Light Assault Rifle Rocket Launcher Peak State ------------ > --- POWER ------------ Ion Engine > --- PROPULSION ------- Compact Wheel Compact Wheel > --- UTILITY ---------- Huge Storage Unit Power Shielding Medium Armor Plating Medium Armor Plating > --- WEAPON ----------- EM Pulse Gun Heavy EM Pulse Gun > --- INVENTORY -------- Ion Engine Light Armor Plating Shield Generator Beam Rifle Assault Rifle Light Assault Rifle Rocket Launcher [Rating: 13] Favorites ----------- Power Ion Engine Engine Ion Engine Propulsion Compact Wheel Wheel Compact Wheel Utility Power Shielding Storage Small Storage Unit Protection Power Shielding Weapon EM Pulse Gun Energy Gun EM Pulse Gun Ballistic Gun Assault Rifle Build | -11 -10 -9 ------- Run | Yrd Mat Mat Slots Evolved 2 | . . 2 Power . | . . . Propulsion . | . . . Utility 2 | . . 2 Weapon . | . . . Parts Attached 16 | 5 2 9 Power 2 | 1 . 1 Engine 2 | 1 . 1 Core . | . . . Reactor . | . . . Propulsion 4 | 2 . 2 Treads . | . . . Leg . | . . . Wheel 4 | 2 . 2 Hover . | . . . Flight . | . . . Utility 5 | 1 1 3 Device . | . . . Storage 2 | 1 . 1 Processor . | . . . Hackware . | . . . Protection 3 | . 1 2 Artifact . | . . . Weapon 5 | 1 1 3 Energy Gun 2 | . . 2 Energy Cannon . | . . . Ballistic Gun 3 | 1 1 1 Ballistic Cannon . | . . . Launcher . | . . . Special Weapon . | . . . Impact Weapon . | . . . Slashing Weapon . | . . . Piercing Weapon . | . . . Special Melee Weapon . | . . . Unidentified Prototypes . | . . . Parts Lost . | . . . Power . | . . . Propulsion . | . . . Utility . | . . . Weapon . | . . . Highest Loss Streak . | . . . To Critical Strikes . | . . . Average Slot Usage (%) 79 | . 66 92 Engine 9 | . 8 11 Wheel 19 | . 17 22 Storage 12 | . 14 11 Protection 19 | . 13 26 Energy Gun 9 | . . 19 Ballistic Gun 7 | . 12 2 Naked Turns . | . . . Heaviest Build 105 | 12 14 105 Greatest Support 32 | 32 32 32 Greatest Overweight (x) 5 | . 1 5 Average Overweight (x) . | . . 1 Largest Inventory Capacity 25 | 8 8 25 Average Capacity 12 | 6 8 18 Most Carried 8 | 5 6 8 Average Carried 3 | 1 2 4 Final Capacity 25 | 8 8 25 Final Carried 8 | 1 6 8 Class Distribution -------------------- 100% | Mutant Dominant Class ---------------- Mutant | -10/Materials Mutant | -9/Materials Resources | -11 -10 -9 ----------- Run | Yrd Mat Mat Matter Collected 276 | 73 33 170 Remotely . | . . . Salvage Created 357 | . 53 304 Parts 25 | . 4 21 Haulers Intercepted . | . . . Recyclers Shooed . | . . . Parts Field Recycled . | . . . Retrieved Matter . | . . . Parts Self-Destructed . | . . . Prevented . | . . . Kills | -11 -10 -9 ------- Run | Yrd Mat Mat Combat Hostiles Destroyed 11 | . 3 8 Guns 9 | . 3 6 AOE 2 | . . 2 Classes Destroyed 4 | . 1 3 Watcher 1 | . . 1 Swarmer 6 | . 3 3 Grunt 3 | . . 3 Sentry 2 | . . 2 Best Kill Streak 4 | . 3 4 Combat Bots Only 3 | . 3 3 Max Kills in Single Turn 2 | . 1 2 Gunslinging 1 | . . 1 Exploded 1 | . . 1 Melee . | . . . Uniques/NPCs Destroyed . | . . . Combat | -11 -10 -9 -------- Run | Yrd Mat Mat Hostile Shots Fired 60 | . 39 21 Missed 14 | . 6 8 Damage Taken 475 | . 271 204 Core 110 | . 69 41 Absorbed by Shields . | . . . Redirected to Shielding 19 | . 19 . Core Remaining (%) 86 | 100 72 . Volleys Fired 30 | . 11 19 Largest 2 | . 2 2 Hottest 85 | . 40 85 Shots Fired 60 | . 22 38 Gun 60 | . 22 38 Cannon . | . . . Launcher . | . . . Special . | . . . Kinetic 22 | . 22 . Thermal . | . . . Explosive . | . . . Electromagnetic 38 | . . 38 Robot Hit Streak 14 | . 1 14 Robot Miss Streak 4 | . 4 2 Penetration Max . | . . . Secondary Targets 2 | . 1 1 Max Gunslinging Chain 1 | . 1 1 Shots Hit Robots 32 | . 5 27 Core Hits 16 | . 3 13 Critical Kills . | . . . Critical Parts Destroyed . | . . . Critical Strikes 1 | . . 1 Corrupt 1 | . . 1 Melee Attacks . | . . . Impact . | . . . Slashing . | . . . Piercing . | . . . Sneak Attacks . | . . . Combat Hostiles . | . . . Follow-up Attacks . | . . . Damage Inflicted 666 | . 54 612 Guns 463 | . 54 409 Cannons . | . . . Explosions 203 | . . 203 Melee . | . . . Ramming . | . . . Kinetic 54 | . 54 . Thermal 203 | . . 203 Explosive . | . . . Electromagnetic 409 | . . 409 Impact . | . . . Slashing . | . . . Piercing . | . . . Highest Corruption 1 | . 1 1 Average Corruption 1 | . 1 1 Corruption Purged . | . . . Corruption Blocked . | . . . Effects 2 | . 1 1 Message Errors 1 | . . 1 Heat Flow Errors 1 | . 1 . Overload Shots . | . . . Overflow Damage . | . . . Projectiles . | . . . Explosions . | . . . Melee . | . . . Knockbacks . | . . . Impact . | . . . Kinetic . | . . . Secondary . | . . . Self-Inflicted Damage 36 | . . 36 Shots 1 | . . 1 Rammed . | . . . Targets Rammed . | . . . Kicked . | . . . Crushed . | . . . Highest Temperature 198 | . 127 198 Average Temperature 87 | . 67 89 Received Heat Transfer 57 | . . 57 Siege Activations . | . . . Robots Corrupted . | . . . Combat Hostiles . | . . . Parts Fried . | . . . Impact Corruptions . | . . . Robots Melted . | . . . Combat Hostiles . | . . . Parts Melted . | . . . Heat Transferred 250 | . . 250 Parts Sabotaged . | . . . Parts Stolen . | . . . Parts Stripped . | . . . Power Chain Reactions 4 | . . 4 Alert | -11 -10 -9 ------- Run | Yrd Mat Mat Peak Influence 262 | . 70 262 Initial 29 | . . 29 Average 70 | . 44 104 Maximum Alert Level 1 | . . 1 Low Security (%) 91 | 100 100 82 Level 1 8 | . . 17 Level 2 . | . . . Level 3 . | . . . Level 4 . | . . . Level 5 . | . . . High Security . | . . . Max Security . | . . . Squads Dispatched 3 | . . 3 Investigation 3 | . . 3 Extermination . | . . . Reinforcement . | . . . Assault . | . . . Garrison . | . . . Intercept . | . . . Searches Triggered . | . . . Construction Impeded . | . . . Haulers Reinforced . | . . . Active Scanning Responses . | . . . Cargo Convoy Interrupts . | . . . Stealth | -11 -10 -9 --------- Run | Yrd Mat Mat Distress Signals 1 | . . 1 Communications Jammed . | . . . Distress Signals . | . . . Times Spotted 16 | . 5 11 Peak Tracking Total 6 | . 4 6 Tactical Retreats . | . . . Traps | -11 -10 -9 ------- Run | Yrd Mat Mat Traps Triggered 9 | . 3 6 Indirectly . | . . . Trap Hack Attempts . | . . . Triggered . | . . . Disarmed . | . . . Reprogrammed . | . . . Reused . | . . . Traps Extracted . | . . . Installed . | . . . Triggered . | . . . Machines | -11 -10 -9 ---------- Run | Yrd Mat Mat Machines Disabled 1 | . . 1 Max in Single Turn 1 | . . 1 Machines Repaired . | . . . Machines Dismantled . | . . . Machines Sabotaged . | . . . Overloaded Fab Kills . | . . . Hacking | -11 -10 -9 --------- Run | Yrd Mat Mat Machines Accessed 6 | . 1 5 Terminals 4 | . 1 3 Fabricators . | . . . Repair Stations . | . . . Recycling Units 1 | . . 1 Scanalyzers 1 | . . 1 Garrison Access . | . . . Total Hacks 20 | . 3 17 Successful 10 | . 1 9 Failed 10 | . 2 8 Catastrophic 1 | . . 1 Database Lockouts . | . . . Manual 14 | . 4 10 Terminals 15 | . 3 12 Fabricators . | . . . Repair Stations . | . . . Recycling Units 3 | . . 3 Scanalyzers 2 | . . 2 Garrison Access . | . . . Terminal Hacks 5 | . . 5 Prototype ID Bank 1 | . . 1 Branch Access Points 1 | . . 1 Alert Level 2 | . . 2 Unreport Threat 1 | . . 1 Fabricator Hacks . | . . . Repair Station Hacks . | . . . Recycling Unit Hacks 1 | . . 1 Retrieve Matter 1 | . . 1 Scanalyzer 2 | . . 2 Insert Component 1 | . . 1 Analyze 1 | . . 1 Garrison Access Hacks . | . . . Unauthorized Hacks 2 | . 1 1 Terminals 1 | . 1 . Assimilate 1 | . 1 . Fabricators . | . . . Repair Stations . | . . . Recycling Units 1 | . . 1 Monitor 1 | . . 1 Scanalyzers . | . . . Garrison Access . | . . . Data Cores Recovered . | . . . Used . | . . . Hacking Detections 6 | . 1 5 Full Trace Events 3 | . . 3 Feedback Events . | . . . Feedback Blocked . | . . . Robot Schematics Acquired . | . . . Robots Built . | . . . Authchips . | . . . Time . | . . . Total Robot Build Rating . | . . . Part Schematics Acquired 1 | . . 1 Parts Built . | . . . Authchips . | . . . Time . | . . . Total Part Build Rating . | . . . Parts Repaired . | . . . Time . | . . . Parts Recycled . | . . . Recycled Matter . | . . . Retrieved Matter . | . . . Retrieved Components . | . . . Parts Scanalyzed 1 | . . 1 Part Schematics Acquired 1 | . . 1 Parts Damaged . | . . . Bothacking | -11 -10 -9 ------------ Run | Yrd Mat Mat Used RIF Installer . | . . . Robots Hacked . | . . . Non-combat . | . . . Combat . | . . . Robot Hacks Applied . | . . . Relay Couplers Released . | . . . Fabnet Peak Effective % . | . . . Robots Rewired . | . . . Allies Hacked . | . . . Hacks Repelled . | . . . Allies | -11 -10 -9 -------- Run | Yrd Mat Mat Total Allies . | . . . Largest Group . | . . . Highest-Rated Group . | . . . Highest-Rated Ally . | . . . Total Orders . | . . . Ally Attacks . | . . . Total Damage . | . . . Kills . | . . . Allies Corrupted . | . . . Allies Melted . | . . . Intel | -11 -10 -9 ------- Run | Yrd Mat Mat Robot Analysis Total . | . . . Derelict Logs Recovered . | . . . Drone Launches . | . . . Drone Recoveries . | . . . Exploration | -11 -10 -9 ------------- Run | Yrd Mat Mat Turns Passed 694 | 42 317 335 Spaces Moved 403 | 38 168 197 Core 25 | 17 8 . Treads . | . . . Legs . | . . . Wheels 378 | 21 160 197 Hover . | . . . Flight . | . . . Fastest Speed 50 | 50 100 100 Average Speed 109 | 77 100 124 Slowest Speed 175 | 100 100 175 Overloaded Moves . | . . . Propulsion Burnouts . | . . . Robots Hopped . | . . . Cave-ins Triggered . | . . . Exploration Rate (%) 24 | 3 43 26 Regions Visited 2 Branch Regions . Pre-discovered Areas . | . . . Known Exits Taken . | . . . Unknown Exits Taken 2 | 1 1 . Scrap Searched . | . . . Spaces Dug . | . . . Terrain Destroyed 9 | . . 9 Melee . | . . . Projectile . | . . . AOE 9 | . . 9 Terrain Rammed . | . . . Walls Destroyed . | . . . Machines Disabled . | . . . Actions | -11 -10 -9 --------- Run | Yrd Mat Mat Total 595 | 50 297 248 Wait 122 | . 110 12 Move 401 | 37 167 197 Hop . | . . . Pick Up 24 | 7 7 10 Fast Attach . | . . . Attach 14 | 5 2 7 Detach . | . . . Swap 2 | . . 2 Drop 2 | 1 . 1 Fire 30 | . 11 19 Melee . | . . . Ram . | . . . Kick . | . . . Crush . | . . . Escape Stasis . | . . . Rewire . | . . . Trap . | . . . Miscellaneous . | . . . Route ------- -11/Scrapyard -10/Materials -9/Materials (discovered 2 exits: *Min x2) History --------- Turn | Location | Event 26 | -11/Scrapyard | Discovered new exit (range 15) 43 | -11/Scrapyard | Entered Materials 224 | -10/Materials | Discovered new exit (range 10) 306 | -10/Materials | Build established: Mutant 360 | -10/Materials | Entered another Materials area 360 | -9/Materials | Evolved 2 slots: Utility x2 372 | -9/Materials | Identified exit to Mines 695 | -9/Materials | Self-destructed Last Messages --------------- Hvy. Assault Rifle (71%). 00689_ Acquired Med. Armor Plating. 00690_ Triggered Blade Trap. 00690_ Massive razor-sharp blades shoot up from within the floor. 00690_ EM Pulse Gun severed. 00691_ Integration Channel disabled. 00692_ Triggered Blade Trap. 00692_ Massive razor-sharp blades shoot up from within the floor. 00692_ Com. Wheel severed. 00692_ >> MONITOR: Recycling Unit M001 accepting Heat Sink (90%). 00692_ K-01 Serf collects debris. 00693_ Triggered Blade Trap. 00693_ Massive razor-sharp blades shoot up from within the floor. 00693_ Ion Engine severed. 00693_ Com. Wheel severed. 00693_ K-01 Serf destroyed. Map ----- +----------------------------------------------------+ | | | | | | | | | | | ???????????????????????????????????????? | | ???????????????????????????????????????? | | ???????????????????????????????????????? | | ???????????????????????????????????????? | | ???????????????????????????????????????? | | ???????????????????????????????????????? | | ???????????????????????????????????????? | | ???????????????????????????????????????? | | ???????????????????????#####???????????? | | ??????????????????????##"""##??????????? | | ?????????????????????##"!!!"##?????????? | | ?????????????????????#"" ""#?????????? | | ?????????????????????# #?????????? | | ?????????????????????# > ??????????? | | ?????????????????????# ??????????? | | ?????????????????????? ???????????? | | ??????????????????????? ???????????? | | ???????????????????????# #???????????? | | ???????????????????????# #???????????? | | ???????????????????????# = #???########? | | ???????????????????????#*@!#?? #? | | ??????????????????????## [=##? #? | | ??????????????????????# # [ #? | | ??????????????????????# # #? | | ????????????########### + #? | | ??????????? # #? | | ???????????? ! # #? | | ???????????? """ """ %= #? #? | | ????????????? """""""" = ###########? | | ???????????? """"" "#?????????? | | ??????????? T#?????????? | | ??????????? "###???????? | | ??????????? """ """ # #???????? | | #####???????? ?""""""""" # #???????? | | # ??????? """"" u #???????? | | # ??????? # ##???????? | | # ??????? ###????????? | | # #????????############ #??????????? | | # #????????????# ## #??????????? | | # #????????????# ## #??????????? | | # #????????????# """ ## #??????????? | | # #????????????# """ ## ^#####??????? | | # #????????????# """ #" #??????? | | # ########?????# #"%"#### #??????? | | # # #?????#= #"["#???????????? | +----------------------------------------------------+ Best States ------------- Heat Dissipation 28 Energy Generation 10 Energy Capacity 250 Matter Stores 172 Matter Capacity 300 Sight Range 16 Terrain Scan Density 10 Armor Coverage 450 Power Shielding 33 Evasion (%) 50 Item Schematics ----------------- Rocket Launcher | -9/Materials | Scanalyzed Robot Schematics ------------------ None Fabricated ------------ Nothing Alien Tech Used ----------------- None Achievements -------------- None Challenges ------------ None Game ------ Seed PhasingNodeDetonator Manual? 0 Play Time 00:11:37 Cumulative 104.8 hours Start 2024.03.31 @ 14:19:53 End 2024.03.31 @ 14:30:16 Sessions 1 Manual Loads 0 Difficulty Rogue Special Mode None Game No. 102 Rogue 99 Adventurer 0 Explorer 3 Win Type - Total 0 Types 0/0/0/0/0/0/0/0/0 Lore% 31 Gallery% 47 Achievement% 33 Wizard Run 0 Options --------- Layout 1 ASCII 0 Keyboard 0 Movement Numpad Keybinds 0 Fullscreen 2 Font 48/Terminus Map View 50x35 Zoom Use 0% Tactical HUD 1 Map Filters NONE Filters NONE Steam 1 RUN: 5ad6e0d2-3576-43fa-9f76-5c42c9ec499f